Cogmind - Beta 17.1 @@@ ROGUE MODE // 2026.09.24 @ 20:08:29 // Winter2019/RPGLIKE Player: obl-vn Result: Destroyed by as-79158 with Assembled Gauss Rifle Performance ------------- Evolutions (4) 2000 Regions Visited (18) 3600 Robots Destroyed (433) 2165 Value Destroyed (15128) 15128 Prototype IDs (23) 460 Alien Tech Used (0) 0 Bonus (557) 557 TOTAL SCORE: 23910 Bonus ------- High Alert Combat Kills 785 Follower Combat Kills 1050 Met Data Miner 300 Met Imprinter 300 Destroyed Z-Imprinter 1000 Triggered Deep Caves Wall 500 Exposed GOLEM Chamber 500 Friendly Fire -3878 Cogmind --------- Core Integrity 0/1800 Matter 179/300 Energy 2/100 System Corruption 1% Temperature Cool (0) Movement Rolling (105) Ox1 Location -6/Deep Caves Parts ------- > --- POWER (2) -------- (None) > --- PROPULSION (2) --- Armored Huge Wheel (fused) > --- UTILITY (12) ----- Makeshift Salvage Targeting Computer Tactical Coordination Suite Core Analyzer Advanced Particle Charger Experimental Thermal Shield Remote Shield Mobile Refinery Mk. CCLXVII > --- WEAPON (2) ------- Cooled Particle Cannon Advanced EMP Blaster > --- INVENTORY (4) ---- GOLEM Unit Arc Projector Peak State ------------ > --- POWER ------------ Enhanced Nuclear Core Enhanced Nuclear Core > --- PROPULSION ------- Armored Huge Wheel > --- UTILITY ---------- Makeshift Salvage Targeting Computer Tactical Coordination Suite Core Analyzer Advanced Particle Charger Damper Plating Experimental Thermal Shield Remote Shield System Restoration Module Mobile Refinery Mk. CCLXVII > --- WEAPON ----------- Cooled Particle Cannon Advanced EMP Blaster > --- INVENTORY -------- Protomatter GOLEM Unit Arc Projector [Rating: 97] Favorites ----------- Power Enhanced Nuclear Core Engine Heavy Ion Engine Power Core Enhanced Nuclear Core Reactor Zionite Light DM Reactor Propulsion Armored Huge Wheel Treads Light Treads Wheel Armored Huge Wheel Utility Core Analyzer Device Particle Charger Processor Core Analyzer Hackware System Shield Protection Damper Plating Weapon Cooled Particle Cannon Energy Gun Improved EM Shotgun Energy Cannon Cooled Particle Cannon Launcher Advanced EMP Blaster Slashing Weapon Centrium Greatsword Build | -11 -10 -10 -9 -9 -8 -8 -7 -7 -7 -7 -7 -7 -6 -6 -6 -6 -6 -6 ------- Run | Yrd Mat Min Mat Min Mat Sto Fac Was Fac Low Low Dat Pro Fac Low Low Zio Dee Slots Evolved 14 | 1 3 1 . . 7 . . . 1 . . . . 1 . . . . Power 1 | . 1 . . . . . . . . . . . . . . . . . Propulsion 1 | . . . . . 1 . . . . . . . . . . . . . Utility 11 | . 2 1 . . 6 . . . 1 . . . . 1 . . . . Weapon 1 | 1 . . . . . . . . . . . . . . . . . . Parts Attached 79 | 4 5 3 4 . 21 4 13 5 7 . . . . 3 2 . 2 6 Power 10 | 1 2 . 1 . 2 . 3 . . . . . . . . . . 1 Engine 7 | 1 2 . 1 . 2 . 1 . . . . . . . . . . . Core 2 | . . . . . . . 2 . . . . . . . . . . . Reactor 1 | . . . . . . . . . . . . . . . . . . 1 Propulsion 4 | 1 . . . . 3 . . . . . . . . . . . . . Treads 1 | . . . . . 1 . . . . . . . . . . . . . Leg . | . . . . . . . . . . . . . . . . . . . Wheel 3 | 1 . . . . 2 . . . . . . . . . . . . . Hover . | . . . . . . . . . . . . . . . . . . . Flight . | . . . . . . . . . . . . . . . . . . . Utility 47 | . 3 2 1 . 11 3 7 3 6 . . . . 3 2 . 2 4 Device 24 | . 3 1 . . 5 . 3 1 3 . . . . 2 2 . 1 3 Storage . | . . . . . . . . . . . . . . . . . . . Processor 10 | . . . 1 . 4 . 2 . 1 . . . . 1 . . 1 . Hackware 7 | . . . . . 1 2 2 . 2 . . . . . . . . . Protection 6 | . . 1 . . 1 1 . 2 . . . . . . . . . 1 Artifact . | . . . . . . . . . . . . . . . . . . . Weapon 18 | 2 . 1 2 . 5 1 3 2 1 . . . . . . . . 1 Energy Gun 7 | 2 . . 2 . 1 . . 1 . . . . . . . . . 1 Energy Cannon 5 | . . . . . 3 . 2 . . . . . . . . . . . Ballistic Gun . | . . . . . . . . . . . . . . . . . . . Ballistic Cannon . | . . . . . . . . . . . . . . . . . . . Launcher 5 | . . 1 . . 1 1 1 . 1 . . . . . . . . . Special Weapon . | . . . . . . . . . . . . . . . . . . . Impact Weapon . | . . . . . . . . . . . . . . . . . . . Slashing Weapon 1 | . . . . . . . . 1 . . . . . . . . . . Piercing Weapon . | . . . . . . . . . . . . . . . . . . . Special Melee Weapon . | . . . . . . . . . . . . . . . . . . . Unidentified Prototypes 20 | . 1 1 2 . 1 2 4 1 1 . . . . 1 . . 1 5 Corrupted Parts 2 | . . . . . . . . . . . . . . . . . . 2 System Corruption 8 | . . . . . . . . . . . . . . . . . . 8 Parts Lost 8 | . . . . . 2 . 3 . . . . . . . . . . 3 Power 2 | . . . . . . . . . . . . . . . . . . 2 Propulsion 1 | . . . . . 1 . . . . . . . . . . . . . Utility 5 | . . . . . 1 . 3 . . . . . . . . . . 1 Weapon . | . . . . . . . . . . . . . . . . . . . Highest Loss Streak 2 | . . . . . 1 . 2 . . . . . . . . . . 2 To Critical Strikes . | . . . . . . . . . . . . . . . . . . . Average Backups 1 | . . . 1 1 1 1 1 2 3 3 3 3 3 3 3 3 2 1 Power . | . . . . . . . . . . . . . . . . . . . Propulsion . | . . . . . . . . . . . . . . . . . . . Utility . | . . . . . . . . . . . . . . . . . . . Weapon 1 | . . . 1 1 1 1 1 2 2 3 3 3 3 3 3 3 2 1 Tool/Special . | . . . . . . . . . . . . . . . . . . . Unused Backups 5 | . . . . . . . . . 2 . . . . . . . 2 1 Power 1 | . . . . . . . . . 1 . . . . . . . . . Propulsion . | . . . . . . . . . . . . . . . . . . . Utility 2 | . . . . . . . . . . . . . . . . . 1 1 Weapon 2 | . . . . . . . . . 1 . . . . . . . 1 . Tool/Special . | . . . . . . . . . . . . . . . . . . . Average Slot Usage (%) 85 | . 99 99 99 100 93 92 91 85 75 76 76 76 76 76 77 77 76 76 Engine 7 | . 23 22 22 22 14 12 7 . . . . . . . . . . . Core 6 | . . . . . . . 4 12 11 11 11 11 11 11 11 11 11 10 Wheel 7 | . 15 11 11 11 6 6 6 6 5 5 5 5 5 5 5 5 5 5 Device 25 | . 29 33 22 22 34 29 17 12 14 23 23 23 23 22 26 27 31 32 Processor 13 | . . . 10 11 11 23 18 15 15 17 17 17 17 17 16 16 12 11 Hackware 3 | . . . . . 4 9 23 23 5 . . . . . . . . . Protection 5 | . . 10 10 11 4 . . 2 5 5 5 5 5 5 5 5 5 4 Energy Gun 5 | . 31 12 21 22 4 . . 1 . . . . . . . . . 1 Energy Cannon 6 | . . . . . 10 11 11 10 11 10 5 6 5 10 6 5 4 3 Launcher 1 | . . 9 . . . . . . . . 4 3 4 . 3 5 4 5 Peak Build Rating 97 | 4 15 29 22 22 53 57 62 79 79 79 79 79 79 87 87 86 89 97 Average Rating 59 | 2 10 19 21 22 38 53 60 67 75 78 78 78 78 82 86 86 87 91 On Entrance 56 | . 4 15 20 22 22 53 55 62 75 79 79 78 78 78 87 86 86 88 Avg Prop Armor Cover (%) . | . . . . . . . . . . . . . . . . . . . Naked Turns . | . . . . . . . . . . . . . . . . . . . Heaviest Build 98 | 9 24 38 38 35 45 43 46 80 85 85 85 85 85 88 93 92 98 97 Greatest Support 28 | 16 16 16 16 16 28 28 28 28 28 28 28 28 28 28 28 28 28 28 Greatest Overweight (x) 13 | 2 1 2 2 2 13 1 1 2 3 3 3 3 3 3 3 3 3 3 Average Overweight (x) 2 | . . 1 1 2 1 1 1 1 2 2 2 2 2 2 3 3 3 3 Largest Inventory Capacity 4 | . 1 1 1 1 2 3 4 4 4 4 4 4 4 4 4 4 4 4 Average Capacity 2 | . . 1 1 1 1 2 3 4 4 4 4 4 4 4 4 4 4 4 Most Carried 4 | . 1 1 1 1 2 3 4 4 4 4 4 4 4 4 4 4 4 4 Average Carried 2 | . . . 1 1 1 2 2 3 3 4 4 4 3 3 3 4 3 3 Final Capacity 4 | . 1 1 1 1 2 3 4 4 4 4 4 4 4 4 4 4 4 4 Final Carried 4 | . 1 1 1 1 2 3 2 4 4 4 4 4 4 3 4 4 4 3 Class Distribution -------------------- 48% | Scavenger-Mutant 31% | Mutant 16% | Hacker-Mutant 4% | Wizard-Mutant Dominant Class ---------------- Mutant | -10/Materials Mutant | -10/Mines Mutant | -9/Materials Mutant | -9/Mines Hacker-Mutant | -8/Materials Scavenger-Mutant | -8/Storage Hacker-Mutant | -7/Factory Wizard-Mutant | -7/Waste Mutant | -7/Factory Scavenger-Mutant | -7/Lower Caves Scavenger-Mutant | -7/Lower Caves Scavenger-Mutant | -7/Data Miner Scavenger-Mutant | -6/Proximity Caves Scavenger-Mutant | -6/Factory Scavenger-Mutant | -6/Lower Caves Scavenger-Mutant | -6/Lower Caves Scavenger-Mutant | -6/Zion Scavenger-Mutant | -6/Deep Caves Resources | -11 -10 -10 -9 -9 -8 -8 -7 -7 -7 -7 -7 -7 -6 -6 -6 -6 -6 -6 ----------- Run | Yrd Mat Min Mat Min Mat Sto Fac Was Fac Low Low Dat Pro Fac Low Low Zio Dee Matter Collected 4110 | 240 50 258 139 . 238 86 276 120 289 70 70 200 136 129 320 105 1025 359 Remotely . | . . . . . . . . . . . . . . . . . . . Salvage Created 18466 | . 512 241 988 423 2348 1316 1737 1341 1700 67 227 609 614 645 1134 496 2082 1986 Parts 1032 | . 47 11 72 17 119 74 103 39 100 19 22 18 54 39 66 28 158 46 Haulers Intercepted 27 | . 2 . 3 . 6 6 3 . 6 . . . . 1 . . . . Recyclers Shooed 4 | . . . . . . . 3 . . . . . . 1 . . . . Parts Field Recycled . | . . . . . . . . . . . . . . . . . . . Retrieved Matter . | . . . . . . . . . . . . . . . . . . . Parts Self-Destructed 61 | . . . . . . . . . . 15 8 . 16 . 12 10 . . Prevented 91 | . . . . . . . . . . 6 9 . 31 . 31 14 . . Parts Restored . | . . . . . . . . . . . . . . . . . . . Kills | -11 -10 -10 -9 -9 -8 -8 -7 -7 -7 -7 -7 -7 -6 -6 -6 -6 -6 -6 ------- Run | Yrd Mat Min Mat Min Mat Sto Fac Was Fac Low Low Dat Pro Fac Low Low Zio Dee Combat Hostiles Destroyed 367 | . 17 12 21 9 39 28 31 6 28 6 9 4 20 13 28 14 13 69 Guns 45 | . 13 2 15 8 7 . . . . . . . . . . . . . Cannons 138 | . . . . . 29 28 22 6 25 3 . . 2 10 1 . 3 9 AOE 151 | . 4 10 6 1 3 . 9 . 1 2 8 . 12 3 21 10 6 55 Classes Destroyed 28 | . 4 5 2 . 5 . 2 1 . 1 . . 1 . 1 . 3 3 Worker 8 | . . 1 . . . . 5 . 1 . . . . 1 . . . . Builder 9 | . . 1 . . . 1 4 . 2 . . . . 1 . . . . Tunneler 1 | . . . . . 1 . . . . . . . . . . . . . Hauler 27 | . 2 . 3 . 6 6 3 . 6 . . . . 1 . . . . Recycler 10 | . . 4 . . 3 . 2 . 1 . . . . . . . . . Operator 7 | . . . 2 . 2 . 1 . 2 . . . . . . . . . Watcher 6 | . 1 . 2 . 3 . . . . . . . . . . . . . Swarmer 61 | . 3 1 10 5 4 . 5 . 1 . 8 . 1 3 13 7 . . Cutter 2 | . . . . . 2 . . . . . . . . . . . . . Saboteur 1 | . . . . . . . . . . . . . 1 . . . . . Grunt 121 | . 14 2 4 4 14 18 14 . 21 3 . . 12 2 10 3 . . Brawler 6 | . . . . . . . 3 . . . . . 2 . 1 . . . Duelist 7 | . . . . . 1 . 1 . . . . . 2 . 1 2 . . Sentry 36 | . . . 7 . 8 10 1 . 2 1 . . 1 2 2 2 . . Demolisher 1 | . . 1 . . . . . . . . . . . . . . . . Specialist 8 | . . . . . 8 . . . . . . . . . . . . . Hunter 9 | . . . . . 2 . 2 . . 1 1 . . 3 . . . . Programmer 12 | . . . . . . . 5 . 4 . . . . 3 . . . . Behemoth 2 | . . . . . . . . . . 1 . . 1 . . . . . Compactor 6 | . . . . . . . . 6 . . . . . . . . . . Enhanced Grunt 6 | . . . . . . . . . . . . 4 . . . . . 2 Zionite 64 | . . . . . . . . . . . . . . . . . 64 . Z-Light 2 | . . . . . . . . . . . . . . . . . . 2 Tinkerer 4 | . . . . . . . . . . . . . . . . . 4 . Assembler 2 | . . . . . . . . . . . . . . . . . . 2 Assembled 71 | . . 8 . . . . . . . . . . . . . . . 63 Golem 4 | . . . . . . . . . . . . . . . . . . 4 Wasp 3 | . . . . . . . . . 2 . . . . . . . 1 . Thug 4 | . . . . . . . . . . . . . . . 2 . 2 . Savage 2 | . . . . . . . . . . . . . . . . . 2 . Martyr 2 | . . . . . . . . 2 . . . . . . . . . . Wizard 1 | . . . . . . . . . . . . . . . . . 1 . Fireman 2 | . . . . . . . . . . . . . . . . . 2 . Mutant 7 | . . . . . . . . . . . . . . . 2 . 5 . Best Kill Streak 61 | . 4 5 5 3 4 8 10 2 6 3 5 3 7 3 6 7 14 61 Combat Bots Only 59 | . 4 3 4 3 4 8 10 2 5 3 5 3 7 3 6 7 4 59 Max Kills in Single Turn 3 | . 2 2 3 2 1 2 2 1 2 2 2 1 2 2 3 3 3 3 Gunslinging . | . . . . . . . . . . . . . . . . . . . Exploded 3 | . 2 1 3 1 1 . 2 . 1 2 2 . 2 2 3 3 1 3 Melee . | . . . . . . . . . . . . . . . . . . . Uniques/NPCs Destroyed 1 | . . . . . . . . . . . . . . . . . . 1 Z-Imprinter (-6/Deep Caves) Combat | -11 -10 -10 -9 -9 -8 -8 -7 -7 -7 -7 -7 -7 -6 -6 -6 -6 -6 -6 -------- Run | Yrd Mat Min Mat Min Mat Sto Fac Was Fac Low Low Dat Pro Fac Low Low Zio Dee Hostile Shots Fired 1428 | . 60 19 50 19 118 52 202 . 110 58 14 24 65 123 81 25 56 352 Missed 478 | . 14 3 20 8 31 12 59 . 38 24 6 12 27 41 23 15 24 121 Hits 950 | . 46 16 30 11 87 40 143 . 72 34 8 12 38 82 58 10 32 231 Melee 30 | . . . . . 1 . 7 . . . . . . . 3 . 1 18 Projectile 920 | . 46 16 30 11 86 40 136 . 72 34 8 12 38 82 55 10 31 213 AOE 10 | . . 9 . . 1 . . . . . . . . . . . . . Critical Strikes 22 | . 1 1 1 . 2 1 4 . 1 . . . 1 1 2 . 1 6 Part Disruptions 1 | . . . . . . . . . . . . . . . . . . 1 Damage Taken 13542 | . 555 548 518 135 1150 485 2135 . 779 201 90 414 468 673 620 95 356 4320 Core 8429 | . 438 386 358 98 863 393 1734 . 384 97 44 200 257 292 304 42 171 2368 Absorbed by Shields 2054 | . . . . . 137 185 205 . 202 81 39 130 172 212 173 27 89 402 Redirected to Core 7139 | . 370 289 318 61 642 305 1359 . 343 93 44 200 213 262 303 38 171 2128 Ignored by Resistances 2499 | . . 18 51 16 60 . . . 120 14 102 18 161 236 210 16 235 1242 Regen/Repaired (Parts) 131 | . . . 124 . . . . . 7 . . . . . . . . . Core Remaining (%) 87 | 100 . 90 . 48 . 100 . . . . . . 98 . . . . . Volleys Fired 1184 | . 67 24 83 17 108 56 105 40 83 16 12 37 39 52 54 21 217 153 Largest 2 | . 2 2 2 2 2 2 2 2 2 2 1 1 2 2 2 1 2 2 Hottest 180 | . 80 80 90 90 150 150 180 180 60 180 36 36 60 60 60 36 90 91 Shots Fired 1695 | . 132 28 142 34 206 97 178 62 149 22 12 37 45 94 57 21 219 160 Gun 443 | . 132 11 140 34 56 . . 17 . . . . 2 . . . . 51 Cannon 813 | . . . . . 148 97 169 45 140 12 . 1 15 91 9 . 36 50 Launcher 439 | . . 17 2 . 2 . 9 . 9 10 12 36 28 3 48 21 183 59 Special . | . . . . . . . . . . . . . . . . . . . Kinetic . | . . . . . . . . . . . . . . . . . . . Thermal 845 | . . . . . 180 97 169 45 140 12 . 1 15 91 9 . 36 50 Explosive 21 | . . 17 2 . . . . . . . . . . . . . 2 . Electromagnetic 829 | . 132 11 140 34 26 . 9 17 9 10 12 36 30 3 48 21 181 110 Robot Hit Streak 54 | . 12 5 18 17 20 25 15 11 11 13 . 26 6 22 10 10 25 54 Robot Miss Streak 5 | . 3 3 5 4 2 1 2 1 2 1 . 1 1 2 2 . 2 3 Penetration Max . | . . . . . . . . . . . . . . . . . . . Secondary Targets 2 | . 1 . . 1 . . . . . . . . . . . . . . Max Gunslinging Chain 1 | . 1 . . 1 . . . . . . . . . . . . . . Shots Hit Robots 932 | . 63 9 61 18 152 70 98 45 85 13 . 19 30 65 19 6 70 109 Core Hits 770 | . 30 24 46 14 69 36 65 20 59 8 9 15 38 28 47 15 99 148 Critical Kills 2 | . . . . . 1 . . . 1 . . . . . . . . . Critical Parts Destroyed . | . . . . . . . . . . . . . . . . . . . Critical Strikes 3 | . . . . . 2 . . . 1 . . . . . . . . . Burn 1 | . . . . . 1 . . . . . . . . . . . . . Meltdown 2 | . . . . . 1 . . . 1 . . . . . . . . . Melee Attacks 3 | . . . . . . . . 3 . . . . . . . . . . Impact . | . . . . . . . . . . . . . . . . . . . Slashing 3 | . . . . . . . . 3 . . . . . . . . . . Piercing . | . . . . . . . . . . . . . . . . . . . Sneak Attacks 3 | . . . . . . . . 3 . . . . . . . . . . Combat Hostiles . | . . . . . . . . . . . . . . . . . . . Follow-up Attacks . | . . . . . . . . . . . . . . . . . . . Damage Inflicted 41719 | . 1143 1055 1482 438 4377 2160 4234 1619 3850 621 463 509 2288 2572 2761 996 5442 5709 Guns 3513 | . 892 65 1009 310 792 . . 8 . . . . 23 . . . . 414 Cannons 18240 | . . . . . 3331 2160 3328 1169 3094 333 . 35 414 2406 171 . 838 961 Explosions 19524 | . 251 990 473 128 254 . 906 . 756 288 463 474 1851 166 2590 996 4604 4334 Melee 442 | . . . . . . . . 442 . . . . . . . . . . Ramming . | . . . . . . . . . . . . . . . . . . . Kinetic . | . . . . . . . . . . . . . . . . . . . Thermal 20782 | . 251 . 325 128 3957 2160 3584 1169 3133 333 53 35 538 2406 394 . 1072 1244 Explosive 1138 | . . 990 148 . . . . . . . . . . . . . . . Electromagnetic 19357 | . 892 65 1009 310 420 . 650 8 717 288 410 474 1750 166 2367 996 4370 4465 Impact . | . . . . . . . . . . . . . . . . . . . Slashing 442 | . . . . . . . . 442 . . . . . . . . . . Piercing . | . . . . . . . . . . . . . . . . . . . Highest Corruption 6 | . . . . . . 1 1 1 1 . . . . . . . . 6 Average Corruption 1 | . . . . . . 1 1 1 1 . . . . . . . . 3 Corruption Purged 9 | . . . . . . . . . 1 . . . . . . . . 8 Corruption Blocked . | . . . . . . . . . . . . . . . . . . . Effects 41 | . . . . . . 6 6 4 19 . . . . . . . . 6 Message Errors 13 | . . . . . . 1 2 2 6 . . . . . . . . 2 Matter Fused 14 | . . . . . . 3 1 . 9 . . . . . . . . 1 Heat Flow Errors 2 | . . . . . . . . 1 1 . . . . . . . . . Energy Discharges 2 | . . . . . . 1 . . 1 . . . . . . . . . Parts Fused 1 | . . . . . . . . . 1 . . . . . . . . . Data Loss (minor) 8 | . . . . . . 1 2 1 1 . . . . . . . . 3 Data Loss (major) 1 | . . . . . . . 1 . . . . . . . . . . . Overload Shots 25 | . . . . . . . 9 10 . 2 . . . . . . 4 . Overflow Damage 818 | . . 58 3 . 131 20 19 100 56 1 . . 6 74 15 30 186 119 Projectiles 380 | . . . . . 131 20 3 . 56 . . . . 73 . . 87 10 Explosions 338 | . . 58 3 . . . 16 . . 1 . . 6 1 15 30 99 109 Melee 100 | . . . . . . . . 100 . . . . . . . . . . Knockbacks . | . . . . . . . . . . . . . . . . . . . Impact . | . . . . . . . . . . . . . . . . . . . Kinetic . | . . . . . . . . . . . . . . . . . . . Secondary . | . . . . . . . . . . . . . . . . . . . Self-Inflicted Damage 959 | . 39 138 201 46 71 . 134 . 4 1 9 2 68 . 16 1 10 219 Shots 103 | . 2 4 4 1 2 . 5 . 2 1 6 1 9 . 11 1 10 44 Rammed . | . . . . . . . . . . . . . . . . . . . Targets Rammed . | . . . . . . . . . . . . . . . . . . . Kicked . | . . . . . . . . . . . . . . . . . . . Crushed . | . . . . . . . . . . . . . . . . . . . Highest Temperature 356 | . 122 . 6 3 84 209 174 356 169 141 . . 39 73 50 7 54 192 Average Temperature 42 | . 36 . 4 3 22 62 75 155 30 37 . . 15 22 17 6 21 67 Received Heat Transfer 2917 | . 258 6 105 21 360 211 390 . 311 41 . . 113 99 143 12 100 747 Effects 2 | . . . . . . . . 2 . . . . . . . . . . Energy Bleed 1 | . . . . . . . . 1 . . . . . . . . . . Damage (minor) 1 | . . . . . . . . 1 . . . . . . . . . . Siege Activations . | . . . . . . . . . . . . . . . . . . . Martial Activations . | . . . . . . . . . . . . . . . . . . . Shielding Activations . | . . . . . . . . . . . . . . . . . . . Robots Disrupted 3 | . . . 1 . . . . . . . . . . . . . . 2 Combat Hostiles 1 | . . . 1 . . . . . . . . . . . . . . . Robots Corrupted 40 | . . . . . . . . . 1 1 1 4 6 . 8 4 7 8 Combat Hostiles 30 | . . . . . . . . . 1 1 1 4 4 . 6 4 4 5 Parts Fried 96 | . 2 . 6 2 . . 1 . 2 2 2 7 3 . 17 5 24 23 Impact Corruptions . | . . . . . . . . . . . . . . . . . . . Robots Melted 2 | . . . . . 1 . . . 1 . . . . . . . . . Combat Hostiles 1 | . . . . . . . . . 1 . . . . . . . . . Parts Melted 31 | . . . . . 14 4 5 . 4 . . . . 4 . . . . Heat Transferred 23758 | . 250 . 350 150 5393 2664 3890 1214 3454 285 . 37 594 2516 435 . 1200 1326 Parts Sabotaged . | . . . . . . . . . . . . . . . . . . . Parts Stolen . | . . . . . . . . . . . . . . . . . . . Parts Stripped . | . . . . . . . . . . . . . . . . . . . Power Chain Reactions 72 | . 4 . 4 2 4 . 5 . 1 . 1 1 4 1 8 2 29 6 Alert | -11 -10 -10 -9 -9 -8 -8 -7 -7 -7 -7 -7 -7 -6 -6 -6 -6 -6 -6 ------- Run | Yrd Mat Min Mat Min Mat Sto Fac Was Fac Low Low Dat Pro Fac Low Low Zio Dee Maximum Alert Level 3 | . 1 . 2 1 2 2 2 1 3 . . . . . . . . . Low Security (%) 50 | 100 47 100 35 84 33 4 45 91 13 . . . . 100 . . . . Level 1 29 | . 52 . 32 15 51 60 34 8 25 . . . . . . . . . Level 2 13 | . . . 32 . 15 35 20 . 17 . . . . . . . . . Level 3 6 | . . . . . . . . . 44 . . . . . . . . . Level 4 . | . . . . . . . . . . . . . . . . . . . Level 5 . | . . . . . . . . . . . . . . . . . . . High Security . | . . . . . . . . . . . . . . . . . . . Max Security . | . . . . . . . . . . . . . . . . . . . Peak Influence 1081 | . 376 129 653 315 528 699 612 212 1081 . . . . 184 . . . . Initial 248 | . . 129 11 248 63 221 113 210 . . . . . 168 . . . . Average 260 | . 209 45 302 75 272 386 231 103 609 . . . . 67 . . . . Influence Increases 10618 | . 805 234 1339 327 1327 919 1208 11 2230 200 210 . 460 408 640 300 . . Destroy 0b10 Robot/C 5880 | . 340 80 480 200 800 560 620 . 1020 120 180 . 400 260 540 280 . . Destroy 0b10 Robot/NC 345 | . 15 30 35 . 75 35 75 . 65 . . . . 15 . . . . Destroy Leader 1296 | . 76 20 150 30 228 162 146 . 262 20 30 . 30 82 40 20 . . Allied During Kill 703 | . . . 3 12 10 . . . 678 . . . . . . . . . Successful Hack 135 | . 22 . 27 . 25 5 18 . 34 . . . . 4 . . . . Disable Machine 1065 | . 195 . 555 45 75 30 45 . 105 . . . . 15 . . . . Anti-Garrison Action 150 | . . . . . . . 150 . . . . . . . . . . . Destroy Structure 459 | . 52 104 74 10 69 22 64 11 36 . . . . 17 . . . . Partial Spotted 45 | . . . . . 30 . 15 . . . . . . . . . . . Lose Combat Pursuer 540 | . 105 . 15 30 15 105 75 . 30 60 . . 30 15 60 . . . Influence Decreases 10618 | . 474 534 732 801 965 1195 858 611 1172 882 294 292 193 499 560 465 91 . Entered New Map 2606 | . . 202 20 390 101 305 137 390 . 392 72 292 . 99 66 49 91 . Time Decay 6408 | . 474 332 542 411 674 440 477 221 622 490 222 . 193 400 494 416 . . Lost Part 50 | . . . . . 20 . 30 . . . . . . . . . . . Lost Ally 290 | . . . 20 . 20 . . . 250 . . . . . . . . . Purge Threat 1264 | . . . 150 . 150 450 214 . 300 . . . . . . . . . Squads Dispatched 56 | . 3 . 4 . 7 3 13 . 19 . . . 1 6 . . . . Investigation 12 | . 2 . 1 . . 1 3 . 4 . . . . 1 . . . . Extermination 10 | . . . . . . . 3 . 5 . . . . 2 . . . . Reinforcement 21 | . 1 . 2 . 7 2 4 . 2 . . . . 3 . . . . Assault 6 | . . . 1 . . . 3 . 1 . . . 1 . . . . . Garrison 7 | . . . . . . . . . 7 . . . . . . . . . Intercept . | . . . . . . . . . . . . . . . . . . . Searches Triggered . | . . . . . . . . . . . . . . . . . . . Construction Impeded . | . . . . . . . . . . . . . . . . . . . Haulers Reinforced 3 | . . . . . . . 2 . . . . . . 1 . . . . Active Scanning Responses . | . . . . . . . . . . . . . . . . . . . Cargo Convoy Interrupts . | . . . . . . . . . . . . . . . . . . . Stealth | -11 -10 -10 -9 -9 -8 -8 -7 -7 -7 -7 -7 -7 -6 -6 -6 -6 -6 -6 --------- Run | Yrd Mat Min Mat Min Mat Sto Fac Was Fac Low Low Dat Pro Fac Low Low Zio Dee Distress Signals 16 | . . 1 5 . 3 1 1 . 4 . . . . 1 . . . . Communications Jammed . | . . . . . . . . . . . . . . . . . . . Distress Signals . | . . . . . . . . . . . . . . . . . . . Times Spotted 560 | . 31 15 33 9 61 38 47 6 56 9 9 4 19 21 29 13 72 88 Peak Tracking Total 26 | . 6 2 4 4 5 7 7 4 7 3 4 1 7 4 7 7 8 26 Tactical Retreats 41 | . 6 1 1 1 1 4 2 . 2 3 . . 2 1 2 . 13 2 Traps | -11 -10 -10 -9 -9 -8 -8 -7 -7 -7 -7 -7 -7 -6 -6 -6 -6 -6 -6 ------- Run | Yrd Mat Min Mat Min Mat Sto Fac Was Fac Low Low Dat Pro Fac Low Low Zio Dee Traps Triggered 23 | . 3 . . . . 3 5 . 5 . . . . 7 . . . . Indirectly 2 | . 1 . . . . . 1 . . . . . . . . . . . Trap Hack Attempts . | . . . . . . . . . . . . . . . . . . . Triggered . | . . . . . . . . . . . . . . . . . . . Disarmed . | . . . . . . . . . . . . . . . . . . . Reprogrammed . | . . . . . . . . . . . . . . . . . . . Reused . | . . . . . . . . . . . . . . . . . . . Traps Extracted . | . . . . . . . . . . . . . . . . . . . Installed . | . . . . . . . . . . . . . . . . . . . Triggered . | . . . . . . . . . . . . . . . . . . . Machines | -11 -10 -10 -9 -9 -8 -8 -7 -7 -7 -7 -7 -7 -6 -6 -6 -6 -6 -6 ---------- Run | Yrd Mat Min Mat Min Mat Sto Fac Was Fac Low Low Dat Pro Fac Low Low Zio Dee Machines Disabled 88 | . 13 . 37 3 5 2 4 . 7 . . 1 1 1 3 . 7 4 Max in Single Turn 3 | . 2 . 3 1 1 1 1 . 3 . . 1 1 1 1 . 1 1 Garrison Access 6 | . . . . . . . 3 . 2 . . . . 1 . . . . Machines Repaired . | . . . . . . . . . . . . . . . . . . . Machines Dismantled . | . . . . . . . . . . . . . . . . . . . Machines Sabotaged . | . . . . . . . . . . . . . . . . . . . Overloaded Fab Kills . | . . . . . . . . . . . . . . . . . . . Hacking | -11 -10 -10 -9 -9 -8 -8 -7 -7 -7 -7 -7 -7 -6 -6 -6 -6 -6 -6 --------- Run | Yrd Mat Min Mat Min Mat Sto Fac Was Fac Low Low Dat Pro Fac Low Low Zio Dee Machines Accessed 74 | . 6 2 11 . 9 7 14 . 13 . 1 . . 10 1 . . . Terminals 48 | . 6 . 9 . 8 7 6 . 6 . . . . 5 1 . . . Fabricators 11 | . . . . . . . 4 . 4 . . . . 3 . . . . Repair Stations 1 | . . . 1 . . . . . . . . . . . . . . . Recycling Units 1 | . . . . . . . . . 1 . . . . . . . . . Scanalyzers 4 | . . . 1 . 1 . 1 . . . . . . 1 . . . . Garrison Access 6 | . . . . . . . 3 . 2 . . . . 1 . . . . Total Hacks 179 | . 11 2 31 . 18 21 41 . 26 . 1 . . 20 8 . . . Successful 89 | . 6 2 14 . 11 6 23 . 14 . 1 . . 4 8 . . . Failed 90 | . 5 . 17 . 7 15 18 . 12 . . . . 16 . . . . Catastrophic 12 | . . . 1 . . 6 2 . 1 . . . . 2 . . . . Database Lockouts . | . . . . . . . . . . . . . . . . . . . Manual 84 | . 10 . 25 . 14 18 12 . 2 . . . . 2 . . 1 . Terminals 139 | . 11 . 28 . 17 21 26 . 17 . . . . 11 8 . . . Fabricators 16 | . . . . . . . 5 . 5 . . . . 6 . . . . Repair Stations 2 | . . . 2 . . . . . . . . . . . . . . . Recycling Units 2 | . . . . . . . . . 2 . . . . . . . . . Scanalyzers 4 | . . . 1 . 1 . 1 . . . . . . 1 . . . . Garrison Access 13 | . . . . . . . 9 . 2 . . . . 2 . . . . Terminal Hacks 48 | . . 2 3 . 4 6 13 . 9 . 1 . . 2 8 . . . Record 8 | . . . . . . . . . . . . . . . 8 . . . Part Schematic 1 | . . . . . . . . . 1 . . . . . . . . . Robot Analysis 1 | . . . . . . . . . 1 . . . . . . . . . Prototype ID Bank 1 | . . . . . . . . . 1 . . . . . . . . . Open Door 6 | . . 2 . . . 3 . . . . 1 . . . . . . . Branch Access Points 1 | . . . . . . . . . . . . . . 1 . . . . Terminal Index 2 | . . . 1 . . . . . 1 . . . . . . . . . Alert Level 2 | . . . . . 1 . . . 1 . . . . . . . . . Unreport Threat 10 | . . . 1 . 1 3 3 . 2 . . . . . . . . . Locate Traps 7 | . . . 1 . 2 . 4 . . . . . . . . . . . Dispatch Records 1 | . . . . . . . 1 . . . . . . . . . . . Transport Status 1 | . . . . . . . 1 . . . . . . . . . . . Assault Status 1 | . . . . . . . 1 . . . . . . . . . . . Recall Assault 1 | . . . . . . . 1 . . . . . . . . . . . Hauler Manifests 3 | . . . . . . . 1 . 1 . . . . 1 . . . . Registered Prototypes 2 | . . . . . . . 1 . 1 . . . . . . . . . Fabricator Hacks 6 | . . . . . . . 4 . 2 . . . . . . . . . Network Status 6 | . . . . . . . 4 . 2 . . . . . . . . . Repair Station Hacks 2 | . . . 2 . . . . . . . . . . . . . . . Scan Component 1 | . . . 1 . . . . . . . . . . . . . . . Repair 1 | . . . 1 . . . . . . . . . . . . . . . Recycling Unit Hacks 1 | . . . . . . . . . 1 . . . . . . . . . Retrieve Components 1 | . . . . . . . . . 1 . . . . . . . . . Scanalyzer 4 | . . . 1 . 1 . 1 . . . . . . 1 . . . . Retrieve Study 4 | . . . 1 . 1 . 1 . . . . . . 1 . . . . Garrison Access Hacks 5 | . . . . . . . 2 . 2 . . . . 1 . . . . Seal Access 5 | . . . . . . . 2 . 2 . . . . 1 . . . . Unauthorized Hacks 23 | . 6 . 8 . 6 . 3 . . . . . . . . . . . Terminals 23 | . 6 . 8 . 6 . 3 . . . . . . . . . . . Assimilate 1 | . 1 . . . . . . . . . . . . . . . . . Botnet 4 | . . . 2 . 1 . 1 . . . . . . . . . . . Skim 18 | . 5 . 6 . 5 . 2 . . . . . . . . . . . Fabricators . | . . . . . . . . . . . . . . . . . . . Repair Stations . | . . . . . . . . . . . . . . . . . . . Recycling Units . | . . . . . . . . . . . . . . . . . . . Scanalyzers . | . . . . . . . . . . . . . . . . . . . Garrison Access . | . . . . . . . . . . . . . . . . . . . Data Cores Recovered 2 | . . . . . . . 1 . 1 . . . . . . . . . Used 1 | . . . . . . . 1 . . . . . . . . . . . Hacking Detections 48 | . 4 . 7 . 7 4 8 . 11 . . . . 7 . . . . Full Trace Events 4 | . . . . . . . 1 . 2 . . . . 1 . . . . Feedback Events . | . . . . . . . . . . . . . . . . . . . Feedback Blocked . | . . . . . . . . . . . . . . . . . . . Robot Schematics Acquired . | . . . . . . . . . . . . . . . . . . . Robots Built . | . . . . . . . . . . . . . . . . . . . Authchips . | . . . . . . . . . . . . . . . . . . . Time . | . . . . . . . . . . . . . . . . . . . Total Robot Build Rating . | . . . . . . . . . . . . . . . . . . . Part Schematics Acquired 1 | . . . . . . . . . 1 . . . . . . . . . Parts Built . | . . . . . . . . . . . . . . . . . . . Authchips . | . . . . . . . . . . . . . . . . . . . Time . | . . . . . . . . . . . . . . . . . . . Total Part Build Rating . | . . . . . . . . . . . . . . . . . . . Part Studies Acquired 4 | . . . 1 . 1 . 1 . . . . . . 1 . . . . Parts Repaired 1 | . . . 1 . . . . . . . . . . . . . . . Time 38 | . . . 38 . . . . . . . . . . . . . . . Parts Recycled . | . . . . . . . . . . . . . . . . . . . Recycled Matter . | . . . . . . . . . . . . . . . . . . . Retrieved Matter . | . . . . . . . . . . . . . . . . . . . Retrieved Components 7 | . . . . . . . . . 7 . . . . . . . . . Parts Scanalyzed . | . . . . . . . . . . . . . . . . . . . Part Schematics Acquired . | . . . . . . . . . . . . . . . . . . . Parts Damaged . | . . . . . . . . . . . . . . . . . . . Bothacking | -11 -10 -10 -9 -9 -8 -8 -7 -7 -7 -7 -7 -7 -6 -6 -6 -6 -6 -6 ------------ Run | Yrd Mat Min Mat Min Mat Sto Fac Was Fac Low Low Dat Pro Fac Low Low Zio Dee Used RIF Installer . | . . . . . . . . . . . . . . . . . . . Robots Hacked . | . . . . . . . . . . . . . . . . . . . Non-combat . | . . . . . . . . . . . . . . . . . . . Combat . | . . . . . . . . . . . . . . . . . . . Robot Hacks Applied . | . . . . . . . . . . . . . . . . . . . Relay Couplers Released 1 | . . . . . . . 1 . . . . . . . . . . . Machine Destruction 1 | . . . . . . . 1 . . . . . . . . . . . Fabnet Peak Effective % . | . . . . . . . . . . . . . . . . . . . Robots Rewired 1 | . . . 1 . . . . . . . . . . . . . . . Allies Hacked 1 | . . . . . . . . . 1 . . . . . . . . . Hacks Repelled . | . . . . . . . . . . . . . . . . . . . Allies | -11 -10 -10 -9 -9 -8 -8 -7 -7 -7 -7 -7 -7 -6 -6 -6 -6 -6 -6 -------- Run | Yrd Mat Min Mat Min Mat Sto Fac Was Fac Low Low Dat Pro Fac Low Low Zio Dee Total Allies 24 | . 1 . 1 1 . . . 19 . . . . . . . . 2 . Largest Group 19 | . 1 . 1 1 1 . . 19 17 . . . . . . . 2 2 Highest-Rated Group 465 | . 10 . 15 31 31 . . 465 395 . . . . . . . 192 192 Highest-Rated Ally 96 | . 10 . 15 31 31 . . 35 31 . . . . . . . 96 96 Total Orders 1 | . 1 . . . . . . . . . . . . . . . . . STAY 1 | . 1 . . . . . . . . . . . . . . . . . Ally Attacks 249 | . . . 6 3 4 . . . 210 . . . . . . . . 26 Total Damage 3767 | . . . 96 41 63 . . . 2688 . . . . . . . . 879 Kills 37 | . . . 3 1 1 . . . 25 . . . . . . . . 7 Allies Corrupted 3 | . . . . . . . . . 1 . . . . . . . . 2 Allies Melted . | . . . . . . . . . . . . . . . . . . . Intel | -11 -10 -10 -9 -9 -8 -8 -7 -7 -7 -7 -7 -7 -6 -6 -6 -6 -6 -6 ------- Run | Yrd Mat Min Mat Min Mat Sto Fac Was Fac Low Low Dat Pro Fac Low Low Zio Dee Active Infowar (turns) 9976 | . 1195 1023 1630 2378 2634 791 . . . . . . . 226 99 . . . Optics 7686 | . . . 1558 2378 2634 791 . . . . . . . 226 99 . . . Structural 9584 | . 1195 1023 1630 2378 2634 724 . . . . . . . . . . . . Robot Analysis Total 1 | . . . . . . . . . 1 . . . . . . . . . Derelict Logs Recovered 10 | . . 1 . 1 . . . . . 3 1 . 2 . 1 . 1 . Drone Launches . | . . . . . . . . . . . . . . . . . . . Drone Recoveries . | . . . . . . . . . . . . . . . . . . . Exploration | -11 -10 -10 -9 -9 -8 -8 -7 -7 -7 -7 -7 -7 -6 -6 -6 -6 -6 -6 ------------- Run | Yrd Mat Min Mat Min Mat Sto Fac Was Fac Low Low Dat Pro Fac Low Low Zio Dee Turns Passed 25975 | 34 1204 1023 1630 2378 2634 1098 1937 477 2563 1299 460 289 994 1429 1416 1015 2604 1491 Spaces Moved 15052 | 32 628 654 991 480 1638 619 1379 232 1742 883 350 153 711 866 914 718 1500 562 Core 19 | 15 . . . . 4 . . . . . . . . . . . . . Treads 4 | . . . . . 4 . . . . . . . . . . . . . Legs . | . . . . . . . . . . . . . . . . . . . Wheels 15029 | 17 628 654 991 480 1630 619 1379 232 1742 883 350 153 711 866 914 718 1500 562 Hover . | . . . . . . . . . . . . . . . . . . . Flight . | . . . . . . . . . . . . . . . . . . . Fastest Speed 50 | 50 100 115 105 120 115 115 105 90 120 120 120 120 120 120 135 135 135 135 Average Speed 123 | 89 107 129 120 120 118 115 106 113 120 134 121 124 120 134 135 135 135 135 Slowest Speed 700 | 150 115 130 130 120 700 115 115 120 135 135 135 135 135 135 135 135 135 135 Overloaded Moves . | . . . . . . . . . . . . . . . . . . . Propulsion Burnouts . | . . . . . . . . . . . . . . . . . . . Robots Hopped . | . . . . . . . . . . . . . . . . . . . Potential Cave-ins . | . . . . . . . . . . . . . . . . . . . Cave-ins Triggered . | . . . . . . . . . . . . . . . . . . . Exploration Rate (%) 74 | 5 90 95 93 97 69 92 54 87 47 97 56 76 84 30 96 88 89 71 Regions Visited 18 Branch Regions 11 Pre-discovered Areas 8 | . 2 1 . 1 3 . . . . . . . . . 1 . . . Known Exits Taken 9 | . . 1 1 1 1 1 . . 1 1 . . 1 1 . . . . Unknown Exits Taken 7 | 1 1 . . . . . . . . . 1 1 . . 1 1 1 . Scrap Searched 17 | . . . . 2 . . . . . 3 2 . 2 . 5 1 2 . Spaces Dug 62 | . . . . . 1 1 30 3 11 4 . . . 12 . . . . Terrain Destroyed 688 | . 67 156 79 12 64 21 70 14 35 5 3 5 24 19 53 8 37 16 Melee . | . . . . . . . . . . . . . . . . . . . Projectile 170 | . . . . . 21 21 49 14 35 5 . . 2 19 1 . . 3 AOE 518 | . 67 156 79 12 43 . 21 . . . 3 5 22 . 52 8 37 13 Terrain Rammed . | . . . . . . . . . . . . . . . . . . . Walls Destroyed . | . . . . . . . . . . . . . . . . . . . Machines Disabled . | . . . . . . . . . . . . . . . . . . . Actions | -11 -10 -10 -9 -9 -8 -8 -7 -7 -7 -7 -7 -7 -6 -6 -6 -6 -6 -6 --------- Run | Yrd Mat Min Mat Min Mat Sto Fac Was Fac Low Low Dat Pro Fac Low Low Zio Dee Total 20685 | 35 1021 803 1286 2248 2126 911 1659 380 2053 973 373 213 800 1030 1036 743 1860 1135 Wait 3629 | . 295 99 181 1752 277 188 69 68 102 54 6 22 4 68 17 . 107 320 Move 15035 | 31 627 653 990 479 1637 618 1379 231 1741 882 349 152 710 865 913 717 1499 562 Hop . | . . . . . . . . . . . . . . . . . . . Pick Up 31 | . 1 . 1 . 1 3 1 1 7 3 . . 2 . 2 . 6 3 Fast Attach 103 | 4 5 5 7 . 21 6 18 7 9 . . . . 5 2 . 3 11 Attach 5 | . . . . . . . . 1 2 . . . . . . . 2 . Detach 8 | . . 1 . . . 1 . 3 2 . . . . . . . . 1 Swap 46 | . . . 3 . 2 . 7 3 6 2 1 2 4 3 5 . 1 7 Drop 109 | . 1 4 7 . 13 8 14 11 15 3 . . 2 4 2 . 9 16 Fire 1184 | . 67 24 83 17 108 56 105 40 83 16 12 37 39 52 54 21 217 153 Melee 3 | . . . . . . . . 3 . . . . . . . . . . Ram . | . . . . . . . . . . . . . . . . . . . Kick . | . . . . . . . . . . . . . . . . . . . Crush . | . . . . . . . . . . . . . . . . . . . Escape Stasis 24 | . . . . . . . . . 24 . . . . . . . . . Rewire 5 | . . . 5 . . . . . . . . . . . . . . . Trap . | . . . . . . . . . . . . . . . . . . . Miscellaneous 503 | . 25 17 9 . 67 31 66 12 62 13 5 . 39 33 41 5 16 62 Route ------- -11/Scrapyard -10/Materials (discovered 6 exits: *Mat x3 / *Min x2 / Sub) -10/Mines (discovered 4 exits: *Mat x2 / *Exi / Sub) -9/Materials (discovered 4 exits: *Mat x3 / *Min) -9/Mines (discovered 2 exits: *Mat x2) -8/Materials (discovered 4 exits: *Fac x2 / *Sto x2) -8/Storage -7/Factory (discovered 4 exits: *Fac x2 / *Low x2) -7/Waste -7/Factory (discovered 4 exits: *Fac x2 / *Low x2) -7/Lower Caves -7/Lower Caves -7/Data Miner -6/Proximity Caves -6/Factory (discovered 4 exits: *Fac x2 / *Low x2) -6/Lower Caves (discovered 2 exits: [*Low] / *Zio) -6/Lower Caves (discovered 2 exits: *Fac / *Zio) -6/Zion (discovered 2 exits: [*Dee] / [*Pro]) -6/Deep Caves History --------- Turn | Location | Event 7 | -11/Scrapyard | Upgraded with Weapon slot (x1) 19 | -11/Scrapyard | Discovered new exit (range 16) 35 | -11/Scrapyard | Entered Materials 312 | -10/Materials | Build established: Mutant 321 | -10/Materials | Discovered new exit (range 16) 403 | -10/Materials | Discovered new exit (range 8) 474 | -10/Materials | Discovered new exit (range 7) 509 | -10/Materials | Upgraded with Utility slot (x1) 515 | -10/Materials | Upgraded with Power slot (x1) 550 | -10/Materials | Reached level 2 597 | -10/Materials | Upgraded with Utility slot (x1) 832 | -10/Materials | Discovered new exit (range 4) 908 | -10/Materials | Learned Storage stockpile data 964 | -10/Materials | Identified exit to Materials 1063 | -10/Materials | Reached level 3 1074 | -10/Materials | Learned location of Storage (-8) 1087 | -10/Materials | Learned location of Mines (-10) 1091 | -10/Materials | Learned location of 2 exits from Mines 1106 | -10/Materials | Learned location of 1 exit from Recycling 1133 | -10/Materials | Learned 4 Subcaves zone layouts 1169 | -10/Materials | Identified exit to Subcaves 1214 | -10/Materials | Learned location of 2 exits from Materials 1239 | -10/Materials | Entered Mines 1240 | -10/Mines | Identified exit to Exiles 1246 | -10/Mines | Met a Derelict bent on vengeance 1249 | -10/Mines | Learned Materials stockpile data 1249 | -10/Mines | Discovered exit to Materials (range 4) 1267 | -10/Mines | Met a Derelict who couldn't figure out how to use a Trap Extractor 1286 | -10/Mines | Upgraded with Utility slot (x1) 1329 | -10/Mines | Assembled infested the area 1592 | -10/Mines | Found a hidden stash of uninstalled traps 1773 | -10/Mines | Deemed a non-threat by the Exiles lab entrance 1964 | -10/Mines | Found the Drone Emporium 1970 | -10/Mines | Found Prototype Device 1970 | -10/Mines | Identified Decoy Drone Bay 2088 | -10/Mines | Discovered exit to Subcaves (range 7) 2262 | -10/Mines | Entered Materials 2263 | -9/Materials | Identified exit to Mines 2264 | -9/Materials | Identified exit to Materials 2264 | -9/Materials | Reached level 4 2421 | -9/Materials | Reached level 5 2617 | -9/Materials | Repaired Reactive Plating 2831 | -9/Materials | Reached level 6 3050 | -9/Materials | Learned 4 Recycling zone layouts 3107 | -9/Materials | Learned 4 Recycling zone layouts 3151 | -9/Materials | Learned location of 3 exits from Materials 3283 | -9/Materials | Reached level 7 3462 | -9/Materials | First assault squad dispatched 3509 | -9/Materials | Reached level 8 3892 | -9/Materials | Entered Mines 3895 | -9/Mines | Escorted by a lone wolf Derelict 4065 | -9/Mines | Received a Rocket Launcher from a helpful Derelict 4152 | -9/Mines | Discovered exit to Materials (range 11) 5777 | -9/Mines | Discovered exit to Materials (range 12) 5796 | -9/Mines | Found a damaged Exp. Sensor Array with a note attached 5830 | -9/Mines | Learned Materials terminal intel 5871 | -9/Mines | Reached level 9 6133 | -9/Mines | Core integrity fell below 50% 6270 | -9/Mines | Entered Materials 6270 | -8/Materials | Accompanied by 1 ally 6271 | -8/Materials | Identified exit to Storage 6271 | -8/Materials | Core integrity fell below 50% 6272 | -8/Materials | Identified exit to Factory 6272 | -8/Materials | Reached level 10 6273 | -8/Materials | Loaded intel: 12 terminal locations 6445 | -8/Materials | Upgraded with Utility slot (x1) 6496 | -8/Materials | Reached level 11 6558 | -8/Materials | Upgraded with Utility slot (x1) 6841 | -8/Materials | Upgraded with Utility slot (x1) 6912 | -8/Materials | Upgraded with Utility slot (x1) 7013 | -8/Materials | Upgraded with Propulsion slot (x1) 7205 | -8/Materials | Build established: Hacker-Mutant 7491 | -8/Materials | Reached level 12 7574 | -8/Materials | Learned 4 Recycling zone layouts 7610 | -8/Materials | Upgraded with Utility slot (x1) 7626 | -8/Materials | Learned 4 Factory zone layouts 7669 | -8/Materials | Learned Factory garrison access intel 7702 | -8/Materials | Learned 4 Recycling zone layouts 7724 | -8/Materials | Learned 8 Factory zone layouts 7736 | -8/Materials | Learned location of Zion (-6) 7791 | -8/Materials | Learned location of Extension (-5) 7835 | -8/Materials | Learned location of 1 exit from Storage 8342 | -8/Materials | Upgraded with Utility slot (x1) 8631 | -8/Materials | Build established: Scavenger-Mutant 8904 | -8/Materials | Entered Storage 8906 | -8/Storage | Reached level 13 9372 | -8/Storage | Destroyed 8 combat bots 9439 | -8/Storage | Found Prototype Protection 9439 | -8/Storage | Identified Lgt. Regenerative Plating 9985 | -8/Storage | Build established: Hacker-Mutant 10002 | -8/Storage | Entered Factory 10003 | -7/Factory | Identified exit to Lower Caves 10004 | -7/Factory | Identified exit to Factory 10004 | -7/Factory | Reached level 14 10005 | -7/Factory | Loaded intel: 3 garrison access locations 10464 | -7/Factory | Reached level 15 10796 | -7/Factory | Core integrity fell below 50% 10806 | -7/Factory | Core integrity fell below 20% 10866 | -7/Factory | Destroyed 10 combat bots 10899 | -7/Factory | Discovered exit to Factory (range 15) 11262 | -7/Factory | Reached level 16 11481 | -7/Factory | Build established: Wizard-Mutant 11602 | -7/Factory | First assault squad dispatched 11939 | -7/Factory | Sucked down chute 11939 | -7/Factory | Entered Waste 11966 | -7/Waste | Spotted C-40 Crusher 12045 | -7/Waste | Spotted C-40 Crusher 12048 | -7/Waste | Destroyed C-40 Crusher 12064 | -7/Waste | Spotted C-40 Crusher 12067 | -7/Waste | Destroyed C-40 Crusher 12070 | -7/Waste | Spotted C-40 Crusher 12075 | -7/Waste | Spotted C-40 Crusher 12075 | -7/Waste | Spotted C-40 Crusher 12088 | -7/Waste | Destroyed C-40 Crusher 12094 | -7/Waste | Destroyed C-40 Crusher 12143 | -7/Waste | Destroyed C-40 Crusher 12160 | -7/Waste | Destroyed C-40 Crusher 12225 | -7/Waste | Found Damper Plating 12230 | -7/Waste | Found Damper Plating 12329 | -7/Waste | Warlord forces began an assault 12351 | -7/Waste | Discovered new exit (range 12) 12416 | -7/Waste | Entered Factory 12416 | -7/Factory | Accompanied by 17 allies 12526 | -7/Factory | Build established: Hacker-Mutant 12621 | -7/Factory | Garrison activated, responded to threat 12675 | -7/Factory | Lost 4 allies 12772 | -7/Factory | Reached level 17 12892 | -7/Factory | Discovered exit to Lower Caves (range 4) 13096 | -7/Factory | Found Prototype Launcher 13096 | -7/Factory | Identified Rocket Array 13589 | -7/Factory | Discovered exit to Lower Caves (range 11) 13764 | -7/Factory | Build established: Mutant 13773 | -7/Factory | Garrison activated, responded to threat 13855 | -7/Factory | Discovered exit to Factory (range 16) 13913 | -7/Factory | Discovered exit to Factory (range 16) 14045 | -7/Factory | Reached level 18 14092 | -7/Factory | Lost 3 allies 14149 | -7/Factory | Garrison activated, responded to threat 14416 | -7/Factory | First assault squad dispatched 14671 | -7/Factory | Upgraded with Utility slot (x1) 14979 | -7/Factory | Entered Lower Caves 15150 | -7/Lower Caves | Build established: Scavenger-Mutant 15566 | -7/Lower Caves | Attracted the attention of an 0b10 checkpoint 15737 | -7/Lower Caves | Spotted B-75 Beast 15812 | -7/Lower Caves | Destroyed B-75 Beast 15915 | -7/Lower Caves | Learned location of 2 exits from Factory 16097 | -7/Lower Caves | Identified exit to Lower Caves 16201 | -7/Lower Caves | Encountered a Warlord checkpoint 16263 | -7/Lower Caves | Found DCF Scrap (14 items) 16278 | -7/Lower Caves | Entered another Lower Caves area 16691 | -7/Lower Caves | Encountered a Warlord checkpoint 16709 | -7/Lower Caves | Learned Factory interactive machine intel 16722 | -7/Lower Caves | Discovered new exit (range 11) 16738 | -7/Lower Caves | Entered Data Miner 16740 | -7/Data Miner | Discovered new exit (range 6) 16766 | -7/Data Miner | Met Data Miner 16795 | -7/Data Miner | Received God Mode back door access code from Data Miner 16840 | -7/Data Miner | Data Conduit disabled 17027 | -7/Data Miner | Entered Proximity Caves 17031 | -6/Proximity Caves | Learned Factory emergency access door positions 17057 | -6/Proximity Caves | Spotted B-75 Beast 17164 | -6/Proximity Caves | Destroyed B-75 Beast 17702 | -6/Proximity Caves | Reached level 19 17748 | -6/Proximity Caves | Attracted the attention of an 0b10 outpost 17785 | -6/Proximity Caves | Destroyed 7 combat bots 17903 | -6/Proximity Caves | Learned Factory non-interactive machine intel 18013 | -6/Proximity Caves | Discovered exit to Factory (range 6) 18021 | -6/Proximity Caves | Entered Factory 18022 | -6/Factory | Identified exit to Factory 18022 | -6/Factory | Identified exit to Lower Caves 18024 | -6/Factory | Loaded intel: 291 non-interactive machine locations 18025 | -6/Factory | Loaded intel: 54 interactive machine locations 18770 | -6/Factory | Discovered exit to Factory (range 15) 18849 | -6/Factory | Watched by a mysterious "MATRIX" hacker 19162 | -6/Factory | Reached level 20 19219 | -6/Factory | Upgraded with Utility slot (x1) 19450 | -6/Factory | Entered Lower Caves 19532 | -6/Lower Caves | Entered a destroyed Warlord outpost 19604 | -6/Lower Caves | Encountered a Warlord checkpoint 19627 | -6/Lower Caves | A Derelict revealed a hidden shortcut to a safe place 20113 | -6/Lower Caves | Attracted the attention of an 0b10 base 20133 | -6/Lower Caves | Learned Factory terminal intel 20135 | -6/Lower Caves | Learned Research garrison access intel 20135 | -6/Lower Caves | Learned Research stockpile data 20135 | -6/Lower Caves | Learned Factory stockpile data 20135 | -6/Lower Caves | Learned 6 Upper Caves zone layouts 20135 | -6/Lower Caves | Learned Extension terminal intel 20162 | -6/Lower Caves | Found DCF Scrap (14 items) 20536 | -6/Lower Caves | Attracted the attention of an 0b10 checkpoint 20604 | -6/Lower Caves | Attacked by a delusional Derelict stockpiling parts 20786 | -6/Lower Caves | Discovered new exit (range 8) 20866 | -6/Lower Caves | Entered another Lower Caves area 21019 | -6/Lower Caves | Discovered exit to Factory (range 15) 21035 | -6/Lower Caves | Attracted the attention of an 0b10 outpost 21074 | -6/Lower Caves | Destroyed 7 combat bots 21614 | -6/Lower Caves | Attracted the attention of an 0b10 checkpoint 21729 | -6/Lower Caves | Encountered a Warlord checkpoint 21794 | -6/Lower Caves | Discovered new exit (range 15) 21881 | -6/Lower Caves | Entered Zion 21937 | -6/Zion | Given A8's code to call for help 22015 | -6/Zion | Discovered new exit (range 10) 22203 | -6/Zion | Given the Hacking Drone Bay 22206 | -6/Zion | Found Prototype Device 22730 | -6/Zion | Found Prototype Device 22730 | -6/Zion | Identified Mobile Refinery Mk. CCLXVII 22881 | -6/Zion | Met Imprinter 23148 | -6/Zion | Attacked by Zionites 24428 | -6/Zion | Discovered new exit (range 3) 24428 | -6/Zion | Saw the warning signs outside the Deep Caves entrance 24464 | -6/Zion | Enhanced Grunt warped into view, answering call for help 24465 | -6/Zion | Enhanced Grunt warped into view, answering call for help 24485 | -6/Zion | Entered Deep Caves 24485 | -6/Deep Caves | Accompanied by 2 allies 24487 | -6/Deep Caves | Reached level 21 24487 | -6/Deep Caves | Met 5H-AD0 24594 | -6/Deep Caves | Z-Facility disabled 24627 | -6/Deep Caves | Attacked by Z-Imprinter 24638 | -6/Deep Caves | Allies destroyed Z-Imprinter 24670 | -6/Deep Caves | Found Prototype Protection 24670 | -6/Deep Caves | Identified Zio. Weapon Casing 25028 | -6/Deep Caves | Thanked by 5H-AD0 25112 | -6/Deep Caves | Found Corrupted Prototype Device 25112 | -6/Deep Caves | Identified Exp. Thermal Shield 25492 | -6/Deep Caves | Spotted Golem 25505 | -6/Deep Caves | Destroyed Golem 25510 | -6/Deep Caves | Found GOLEM Unit 25559 | -6/Deep Caves | Found GOLEM Unit 25627 | -6/Deep Caves | Spotted Golem 25685 | -6/Deep Caves | Destroyed Golem 25814 | -6/Deep Caves | Exposed GOLEM chamber 25815 | -6/Deep Caves | Triggered Deep Caves wall 25900 | -6/Deep Caves | Spotted Assembler 25904 | -6/Deep Caves | Core integrity fell below 50% 25919 | -6/Deep Caves | Spotted Assembler 25938 | -6/Deep Caves | Core integrity fell below 20% 25953 | -6/Deep Caves | Destroyed Assembler 25976 | -6/Deep Caves | Destroyed Assembler 25976 | -6/Deep Caves | Destroyed by as-79158 with Assembled Gauss Rifle Last Messages --------------- 25955_ as-26108 released from Mobile Assembly Unit. 25956_ System Restoration Module severed. 25956_ as-65429 IFF system glitched. 25956_ Destroyed Asb. P-sword. 25956_ as-62615 destroyed. 25958_ Penetrated by Slug. 25958_ as-65429 destroyed. 25962_ as-26108 destroyed. 25964_ as-31777 destroyed. 25965_ as-00111 released from Mobile Assembly Unit. 25971_ Knocked back. 25974_ as-00111 destroyed. 25975_ as-79158 released from Mobile Assembly Unit. 25975_ Penetrated by Slug. 25976_ Com. Matter Pod fried. 25976_ Assembler destroyed. 25976_ Penetrated by Slug. Map ----- +----------------------------------------------------+ | | | | | | | ?????????????????????????????????????????????????? | | ?????????????????????????????????????????????????? | | ?????????????????????????????????????????????????? | | ????????????? ??????????????????????????????????? | | ??????????? ?#?##?????????????????????????????? | | ????????? # # ?????????????????????????????? | | ????????? # # ?????????????????????????????? | | ???????? # ??##?????????????????????????? | | ????????" # ?? #?????????????????????????? | | ???????? ?? #?????????????????????????? | | ???????""" ?? #?????????????????????????? | | ???????" ## #?????????????????????????? | | ???????" # #####???????????????????? | | ???????" ?????????????????????# | | ???????# #?#????????????????????## | | ????????" ### ?????????????????????# | | ????????" ### ##????????????????????? | | ????????" ##???????????????????? | | ????????" b ## #???????????????????? | | ???????"" [ # %% ###???????????????????? | | ???????# G[ ###????????????????????? | | ??????? [ [ #????????????????????? | | ??????? @###????????????????????? | | ??????? % ###????????????????????? | | ??????? #????????????????????? | | ???????# % ##????????????????????# | | ???????# ! ##????????????????????? | | ???????# * = % %=#???????????????????? | | ???????# = #????????????????????? | | ???????# #??###???? ???????????# | | ???????# = #??# #??# #?????????? | | ???????"" #??# ??# #?????????? | | ????????" l =!!! #?## ??# #?????????? | | ????????" *a%! #?# ??# #?????????? | | ????????? = !!* ### #??# #?????????? | | ????????? = = = ! ## #?## #?????????? | | ?????????? ## ### #?????????? | | ?????????? ! #?# #?????????? | | ????????? = ! #### #?????????? | | ?????????? ##????????? | | ?????????" ##???????? | | ????????? = ######### | | ????????" #### | | ???????? #?# | | ????????" ##?# ########## | | ???????? # # #??## #????????? | | ???????? #### ##%## ##???###### ##????????? | +----------------------------------------------------+ Best States ------------- Heat Dissipation 66 Energy Generation 39 Energy Capacity 500 Matter Stores 300 Matter Capacity 300 Sight Range 22 Terrain Scan Density 10 Armor Coverage 1600 Resistance: KI 20 Resistance: TH 30 Resistance: EM 90 Evasion (%) 40 Core Analysis 9 Armor Integrity Analysis 30 Recoil Reduction 1 Particle Charging 27 Salvage Targeting 4 Offensive Hacking 40 Defensive Hacking 30 Item Schematics ----------------- Imp. Particle Charger | -7/Factory | Hacked Robot Schematics ------------------ None Fabricated ------------ Nothing Repaired ---------- Reactive Plating | 31% | -9/Materials Studied --------- Com. Wheel | -9/Materials | Hacked Hvy. Particle Cannon | -8/Materials | Hacked Arm. Huge Wheel | -7/Factory | Hacked Arc Projector | -6/Factory | Hacked Alien Tech Used ----------------- None Achievements -------------- None Challenges ------------ None RPGLIKE | -11 -10 -10 -9 -9 -8 -8 -7 -7 -7 -7 -7 -7 -6 -6 -6 -6 -6 -6 --------- Run | Yrd Mat Min Mat Min Mat Sto Fac Was Fac Low Low Dat Pro Fac Low Low Zio Dee Levels Raised 20 | . 2 . 5 1 3 1 3 . 2 . . . 1 1 . . . 1 XP Earned 33410 | 3000 3095 1000 7108 1150 5237 1717 3801 67 2547 192 247 105 1286 1050 783 462 152 411 XP Spent 32960 | 500 2950 1100 . . 14500 750 3830 . 3650 . . . . 3500 . . . 2180 Upgrades 54 | 1 6 1 . . 10 1 21 . 6 . . . . 1 . . . 7 Power Slot 1 | . 1 . . . . . . . . . . . . . . . . . Propulsion Slot 1 | . . . . . 1 . . . . . . . . . . . . . Utility Slot 11 | . 2 1 . . 6 . . . 1 . . . . 1 . . . . Weapon Slot 1 | 1 . . . . . . . . . . . . . . . . . . Core Integrity 24 | . . . . . . . 18 . . . . . . . . . . 6 Heat Dissipation 5 | . . . . . . . . . 5 . . . . . . . . . Energy Generation 3 | . . . . . . . 2 . . . . . . . . . . 1 Inventory Capacity 4 | . 1 . . . 1 1 1 . . . . . . . . . . . Ranged Accuracy 2 | . 2 . . . . . . . . . . . . . . . . . Hack Attack % 2 | . . . . . 2 . . . . . . . . . . . . . Protomatter Created 6093 | . 361 91 134 . 683 624 530 270 564 273 74 . 597 271 619 225 427 350 Integrity Restored 9982 | . 499 372 204 . 1382 503 1473 271 1225 208 79 . 849 647 784 63 253 1170 Core 6619 | . 397 372 204 . 1170 393 1473 261 384 97 43 . 429 321 304 28 132 611 Parts 3363 | . 102 . . . 212 110 . 10 841 111 36 . 420 326 480 35 121 559 Protomatter Decayed 1980 | . 87 123 10 . 5 392 43 . 515 165 22 . 56 35 96 163 164 104 Game ------ Seed SpacefoldMetafiberInterface Manual? 1 Play Time 03:42:20 Cumulative 285.3 hours Start 2026.09.24 @ 15:35:20 End 2026.09.24 @ 20:08:29 Sessions 1 Manual Loads 0 Difficulty Rogue Special Mode Winter2019/RPGLIKE Game No. 192 Rogue 192 Adventurer 0 Explorer 0 Win Type - Total 6 Types 2/0/2/1/0/0/0/1/0/0 Lore% 63 Gallery% 75 Achievement% 59 Wizard Run 0 Options --------- Layout 2 ASCII 0 Keyboard 0 Movement Mouse Keybinds 0 Fullscreen 1 Font 32/Tamsyn Map View 50x44 Zoom Use 0% Tactical HUD 1 Map Filters NONE Filters NONE Steam 1 RUN: 5042d63d-f08f-43ee-8cee-30d7bf74e0c2